Workbook

Sheet Input
A1: WWTP name/city: | B1: Koprivnica
A3: WWTP location: | B3: Croatia
A5: Wastewater source activity:
A7: Domestic | B7: 1
A8: Industrial | B8: 1
A9: Agriculture | B9: 1
A10: Hospital | B10: 1
A12: WWTP capacity (m3/day): | B12: 8.700
A14: Wastewater discharge: | B14: Lotic water body
A16: Receiving water body flow (m3/s): | B16: 163
A18: WWTP technology: | B18: Tertiary treatment
A20: Sand filtration | B20: 1
A21: Ultrafiltration membranes | B21: 1
A22: Ultraviolet lamps | B22: 1
A23: Reverse osmosis membranes | B23: 1
A24: GAC filtration | B24: 1
A25: AOP (Ozone) | B25: 1
A27: Advanced treatment fraction (%) | B27: 100
A29: Sewage sludge management: | B29: Properly treated and disposed
A31: Agriculture reuse | B31: 0
A32: Landfilling | B32: 1
A33: Incineration | B33: 0
A35: Interest rate (%) | B35: 2,0
A37: Lifespan of the project (years) | B37: 20

Sheet Screening
B1: Yes(1) / No(0)
A2: 1. Known issues of micropollutants in the wastewater treatment plant | B2: 0
A3: 2. Existance of secondary treatment as a minimum level of treatment* | B3: 1
A4: 3. Power supply availability | B4: 1
A5: 4. Different source of wastewater contrubution other than domestic | B5: 1
A6: 5. Need for reuse | B6: 0
A7: 6. Wastewater discharge into a water body | B7: 0
A8: 7. The effluent discharges upstream a drinking water treatment plant | B8: 0
A9: 8. Sewage sludge management* | B9: 1
A10: 9. Sewage sludge final disposition method | B10: 0
A11: 10. Existance of a local regulation or policy regarding micropollutants | B11: 0
A13: Mandatory sum | B13: =SUM(B3,B9) -> 2
A14: Total sum | B14: =SUM(B2:B11) -> 4

Sheet Database
B1: Country | C1: Drinking Water price (€/m3) | D1: Water Exploitation Index (%) | E1: WPMEI (%) | F1: Energy (€/KWh)
A2: 1 | B2: Austria | C2: 3.67 | D2: N/D | E2: 52 | F2: 0.0704
A3: 2 | B3: Belgium | C3: 4.53 | D3: 25.5 | E3: 48 | F3: 0.0753
A4: 3 | B4: Bulgaria | C4: =1.05/1.12 -> 0.9375 | D4: 5.6 | E4: 51 | F4: 0.08
A5: 4 | B5: Croatia | C5: 1.98 | D5: 0.6 | E5: 48 | F5: 0.0848
A6: 5 | B6: Cyprus | C6: 2.9 | D6: 72.3 | E6: 58 | F6: 0.1241
A7: 6 | B7: Czech Republic | C7: 3.27 | D7: 10 | E7: 44 | F7: 0.0722
A8: 7 | B8: Denmark | C8: 9 | D8: 4.6 | E8: 57 | F8: 0.0593
A9: 8 | B9: Estonia | C9: 3.16 | D9: 14 | E9: 47 | F9: 0.0731
A10: 9 | B10: Finland | C10: 5.89 | D10: 6 | E10: 67 | F10: 0.0611
A11: 10 | B11: France | C11: 3.92 | D11: 15.7 | E11: 52 | F11: 0.0737
A12: 11 | B12: Germany | C12: =6.06/1.12 -> 5.410714286 | D12: 17.6 | E12: 54 | F12: 0.0771
A13: 12 | B13: Greece | C13: 1.4 | D13: 13.8 | E13: 64 | F13: 0.0791
A14: 13 | B14: Hungary | C14: 2.65 | D14: 4.3 | E14: 49 | F14: 0.0738
A15: 14 | B15: Ireland | C15: =1.63/1.12 -> 1.455357143 | D15: 1.4 | E15: 57 | F15: 0.1171
A16: 15 | B16: Italy | C16: 1.5 | D16: 36.3 | E16: 51 | F16: 0.0892
A17: 16 | B17: Latvia | C17: =1.75/1.12 -> 1.5625 | D17: 0.7 | E17: 61 | F17: 0.0811
A18: 17 | B18: Lithuania | C18: 1.91 | D18: 1.8 | E18: 53 | F18: 0.0701
A19: 18 | B19: Luxembourg | C19: 6 | D19: 2.8 | E19: 56 | F19: 0.0746
A20: 19 | B20: Malta | C20: 3.32 | D20: 48.2 | E20: 40 | F20: 0.1347
A21: 20 | B21: Netherlands | C21: 3.91 | D21: 10.3 | E21: 57 | F21: 0.0611
A22: 21 | B22: Poland | C22: 2.15 | D22: 18.4 | E22: 37 | F22: 0.0671
A23: 22 | B23: Portugal | C23: 1.82 | D23: 15.1 | E23: 51 | F23: 0.0781
A24: 23 | B24: Romania | C24: 1.42 | D24: 17.8 | E24: 45 | F24: 0.071
A25: 24 | B25: Slovakia | C25: 2.4 | D25: 0.7 | E25: 48 | F25: 0.079
A26: 25 | B26: Slovenia | C26: 2.17 | D26: 2.8 | E26: 49 | F26: 0.0689
A27: 26 | B27: Spain | C27: 1.78 | D27: 29.6 | E27: 57 | F27: 0.1008
A28: 27 | B28: Sweden | C28: 4.44 | D28: 1.4 | E28: 64 | F28: 0.0679
A29: 28 | B29: United Kingdom* | C29: 3.54 | D29: 4.2 | E29: 39 | F29: 0.097
B31: Average | C31: =AVERAGE(C2:C29) -> 3.146288265 | D31: =AVERAGE(D2:D29) -> 14.12962963 | E31: =AVERAGE(E2:E29) -> 52 | F31: =AVERAGE(F2:F29) -> 0.080775
B32: Minimum | C32: =MIN(C2:C29) -> 0.9375 | D32: =MIN(D2:D29) -> 0.6 | E32: =MIN(E2:E29) -> 37 | F32: =MIN(F2:F29) -> 0.0593
B33: Maximum | C33: =MAX(C2:C29) -> 9 | D33: =MAX(D2:D29) -> 72.3 | E33: =MAX(E2:E29) -> 67 | F33: =MAX(F2:F29) -> 0.1347
B36: Primary treatment
B37: Secondary treatment
B38: Tertiary treatment
B39: Advanced treatment
B41: Properly treated and disposed
B42: Not properly treated or disposed
B44: 1
B45: 2
B46: 3
B47: 4
B48: 5
B49: 6
B50: 7
B51: 8
B52: 9
B53: 10
B55: Lotic water body
B56: Lentic water body
B57: Marine water body

Sheet MCA
A1: Criteria | B1: Indicator | C1: Baseline | D1: Goal | E1: Result | F1: weightingfactors
A2: 1. Capital and operative expenditures | B2: =+MCA_1!F18 -> 1.166092774 | C2: =VLOOKUP(Input!B3,Database!B2:C29,2) -> 1.98 | D2: =MIN(Database!C2:C29) -> 0.9375 | E2: =IF(B2>C2,0,IF(B2<D2,100,FORECAST(B2,C7:D7,C2:D2))) -> 78.07263557 | F2: 6 | G2: =+F2/$F$7 -> 0.3 | H2: =+E2*G2 -> 23.42179067
A3: 2. Need for reuse | B3: =VLOOKUP(Input!B3,Database!B2:E29,3) -> 0.6 | C3: =+Database!D32 -> 0.6 | D3: =+Database!D33 -> 72.3 | E3: =IF(B3="N/D",0,FORECAST(B3,C7:D7,C3:D3)) -> 1.887379142e-15 | F3: 1 | G3: =+F3/$F$7 -> 0.05 | H3: =+E3*G3 -> 9.436895709e-17
A4: 3. Social perception | B4: =VLOOKUP(Input!B3,Database!B2:E29,4) -> 48 | C4: =+Database!E32 -> 37 | D4: =+Database!E33 -> 67 | E4: =IF(B4="N/D",0,FORECAST(B4,C7:D7,C4:D4)) -> 36.66666667 | F4: 8 | G4: =+F4/$F$7 -> 0.4 | H4: =+E4*G4 -> 14.66666667
A5: 4. Environmental impact | B5: =+MCA_4!B6 -> 0.007778936836 | C5: 1e-08 | D5: 12.6 | E5: =IF(Input!B14="Lentic water body",100,IF(Input!B14="Marine water body",0,IF(AND(Input!B14="Lotic water body",B5>D5),100,IF(B5<C5,0,FORECAST(B5,C7:D7,C5:D5))))) -> 0.06173751462 | F5: 4 | G5: =+F5/$F$7 -> 0.2 | H5: =+E5*G5 -> 0.01234750292
A6: 5. Occurrence frequency | B6: =HLOOKUP(Input!B3,MCA_5!E2:AF84,83) -> 17.5 | C6: =+MCA_5!C84 -> 17.5 | D6: =+MCA_5!D84 -> 29.25 | E6: =IF(B6="N/D",0,FORECAST(B6,C7:D7,C6:D6)) -> 0 | F6: 1 | G6: =+F6/$F$7 -> 0.05 | H6: =+E6*G6 -> 0
C7: 0 | D7: 100 | F7: =SUM(F2:F6) -> 20 | H7: =ROUND(SUM(H2:H6),0) -> 38

Sheet MCA_1
A2: Input Flow (m3/d) | B2: =+Input!B12 -> 8.700
A3: Advanced treatment fraction (%) | B3: =+Input!B27 -> 100
A4: Design Flow (m3/d) | B4: =+B2*(B3/100) -> 8700
A5: RO Conversion factor | B5: 0.7
A6: Flow* (m3/d) | B6: =+B4*B5 -> 6090
A7: Design to average factor | B7: 0.5
A8: Interest rate (%) | B8: =+Input!B35/100 -> 0.02
A9: Life span (years) | B9: =+Input!B37 -> 20
A10: Energy price (€/KWh) | B10: =VLOOKUP(Input!B3,Database!B2:F29,5) -> 0.0848
A11: Process | B11: Boolean factor | C11: CAPEX (€) | D11: CAPEX_Anuity (€/year) | E11: OPEX (€/year) | F11: Anuity (€/m3) | H11: Energy Consumption (kWh/m3) | I11: Energy Consumption (kWh) | J11: Annual Energy Price (€/year)
A12: Sand Filtration | B12: =+Input!B20 -> 1 | C12: =10^(0.1886*LOG10(B4)^2-0.9659*LOG10(B4)+6.3895)*B12 -> 324604.7616 | D12: =-PMT($B$8,$B$9,C12)*B12 -> 19851.7619 | E12: =10^(0.2525*LOG10(B4)^2 -1.5751*LOG10(B4) + 6.4671)*B12 -> 15160.57735 | F12: =+(D12+E12)/($B$4*$B$7)/365 -> 0.02205154417 | H12: =0.04*B12 -> 0.04 | I12: =+H12*$B$4*$B$7/24 -> 7.25 | J12: =+I12*24*365*$B$10 -> 5385.648
A13: Membrane Filtration | B13: =+Input!B21 -> 1 | C13: =10^(0.09188*LOG10($B$4)^2+0.01813*LOG10($B$4)+5.0066)*B13 -> 3191418.846 | D13: 195176.7028 | E13: =10^(0.0698*LOG10($B$4)^2+0.1977*LOG10($B$4)+3.4035)*B13 -> 184342.6515 | F13: =+(D13+E13)/($B$4*$B$7)/365 -> 0.2390296673 | H13: =0.15*B13 -> 0.15 | I13: =+H13*$B$4*$B$7/24 -> 27.1875 | J13: 20196.18
A14: Ultraviolet | B14: =+Input!B22 -> 1 | C14: =10^(0.055*LOG10($B$4)^2+0.2928*LOG10($B$4)+3.5368)*B14 -> 349849.2071 | D14: 21395.62935 | E14: =10^(0.0146*LOG10($B$4)^2+0.3355*LOG10($B$4)+3.0037)*B14 -> 35644.9462 | F14: =+(D14+E14)/($B$4*$B$7)/365 -> 0.03592541367 | H14: =0.035*B14 -> 0.035 | I14: =+H14*$B$4*$B$7/24 -> 6.34375 | J14: 4712.442
A15: Reverse Osmosis | B15: =+Input!B23 -> 1 | C15: =10^(0.0957*LOG10($B$4)^2+0.0825*LOG10($B$4)+4.5138)*B15 -> 2108901.721 | D15: 128973.5081 | E15: =10^(0.0701*LOG10($B$4)^2+0.2704*LOG10($B$4)+3.3515)*B15 -> 319657.4444 | F15: =+(D15+E15)/($B$4*$B$7)/365 -> 0.2825576775 | H15: =1*B15 -> 1 | I15: =+H15*$B$4*$B$7/24 -> 181.25 | J15: 134641.2
A16: GAC filtration | B16: =+Input!B24 -> 1 | C16: =10^(0.0255*LOG10($B$6)^2+0.568*LOG10($B$6)+3.6987)*B16 -> 1635337.846 | D16: 100011.8957 | E16: =10^(0.0015*LOG10($B$6)^2+0.5343*LOG10($B$6)+3.4657)*B16 -> 323076.9777 | F16: =+(D16+E16)/($B$6*$B$7)/365 -> 0.3806724461 | H16: =0.04*B16 -> 0.04 | I16: =+H16*B6*$B$7/24 -> 5.075 | J16: 3769.9536
A17: Ozone | B17: =+Input!B25 -> 1 | C17: =10^(0.0753*LOG10($B$6)^2-0.0052*LOG10($B$6)+5.1189)*B17 -> 1505797.571 | D17: 92089.63763 | E17: =10^(0.2543*LOG10($B$6)^2-1.5575*LOG10($B$6)+7.3879)*B17 -> 136703.8955 | F17: =+(D17+E17)/($B$6*$B$7)/365 -> 0.2058560255 | H17: =0.15*B17 -> 0.15 | I17: =+H17*B6*$B$7/24 -> 19.03125 | J17: 14137.326
C18: =SUM(C12:C17) -> 9115909.952 | E18: =SUM(E12:E17) -> 1014586.493 | F18: =SUM(F12:F17) -> 1.166092774 | H18: =SUM(H12:H17) -> 1.415 | I18: =SUM(I12:I17) -> 246.1375 | J18: =SUM(J12:J17) -> 182842.7496

Sheet MCA_4
A2: C_local_effluent (ug/L) | B2: 12.6
A3: Q_wwtp (m3/d) | B3: =+Input!B12 -> 8.700
A4: Q_river (m3/s) | B4: =+Input!B16 -> 163
A5: D | B5: =(B3+B4*3600*24)/B3 -> 1619.758621
A6: C_local_water (ug/L) | B6: =+B2/B5 -> 0.007778936836

Sheet MCA_5
E1: 1 | F1: 2 | G1: 3 | H1: 4 | I1: 5 | J1: 6 | K1: 7 | L1: 8 | M1: 9 | N1: 10 | O1: 11 | P1: 12 | Q1: 13 | R1: 14 | S1: 15 | T1: 16 | U1: 17 | V1: 18 | W1: 19 | X1: 20 | Y1: 21 | Z1: 22 | AA1: 23 | AB1: 24 | AC1: 25 | AD1: 26 | AE1: 27 | AF1: 28
A2: # | B2: Substance | C2: Classification | D2: CAS # | E2: Austria | F2: Belgium | G2: Bulgaria | H2: Croatia | I2: Cyprus | J2: Czech Republic | K2: Denmark | L2: Estonia | M2: Finland | N2: France | O2: Germany | P2: Greece | Q2: Hungary | R2: Ireland | S2: Italy | T2: Latvia | U2: Lithuania | V2: Luxembourg | W2: Malta | X2: Netherlands | Y2: Poland | Z2: Portugal | AA2: Romania | AB2: Slovakia | AC2: Slovenia | AD2: Spain | AE2: Sweden | AF2: UK* | AI2: DERC | AJ2: ENEC | AK2: DERC & ENEC
A3: 1 | B3: 50 | C3: Priority substance | D3: 15972-60-8 | AI3: =COUNTIF(E3:AF3,$AI$2) -> 0 | AJ3: =COUNTIF(F3:AH3,$AJ$2) -> 0 | AK3: =+AI3+AJ3 -> 0
A4: 2 | B4: Anthracene | C4: Priority substance | D4: 120-12-7 | AI4: =COUNTIF(E4:AF4,$AI$2) -> 0 | AJ4: =COUNTIF(F4:AH4,$AJ$2) -> 0 | AK4: =+AI4+AJ4 -> 0
A5: 3 | B5: Atrazine | C5: Priority substance | D5: 1912-24-9 | AI5: 0 | AJ5: 0 | AK5: 0
A6: 4 | B6: Benzene | C6: Priority substance | D6: 71-43-2 | AI6: 0 | AJ6: 0 | AK6: 0
A7: 5 | B7: Brominated diphenylethers | C7: Priority substance | D7: 32534-81-9 | AI7: 0 | AJ7: 0 | AK7: 0
A8: 6 | B8: Cadmium and its compounds | C8: Priority substance | D8: 7440-43-9 | AI8: 0 | AJ8: 0 | AK8: 0
A9: 6a | B9: Carbon-tetrachloride | C9: Priority substance | D9: 56-23-5 | E9: ENEC | F9: DERC | G9: ENEC | H9: ENEC | I9: ENEC | J9: ENEC | K9: NA | L9: NA | M9: NA | N9: DERC | O9: DERC | P9: NA | Q9: ENEC | R9: NA | S9: NA | T9: NA | U9: NA | V9: NA | W9: NA | X9: DERC | Y9: NA | Z9: NA | AA9: ENEC | AB9: DERC | AC9: NA | AD9: NA | AE9: NA | AF9: NA | AI9: 5 | AJ9: 6 | AK9: 11 | AN9: =HLOOKUP(Input!$B$3,MCA_5!$E$2:$AF$76,8) -> ENEC
A10: 7 | B10: C10-13, Chloroalkanes | C10: Priority substance | D10: 85535-84-8 | AI10: 0 | AJ10: 0 | AK10: 0
A11: 8 | B11: Chlorfenvinphos | C11: Priority substance | D11: 470-90-6 | AI11: 0 | AJ11: 0 | AK11: 0
A12: 9 | B12: Chlorpyrifos (Chlorpyrifos-ethyl) | C12: Priority substance | D12: 2921-88-2 | E12: NA | F12: NA | G12: NA | H12: NA | I12: NA | J12: NA | K12: NA | L12: NA | M12: NA | N12: NA | O12: NA | P12: NA | Q12: NA | R12: NA | S12: NA | T12: NA | U12: NA | V12: NA | W12: NA | X12: NA | Y12: NA | Z12: NA | AA12: NA | AB12: NA | AC12: NA | AD12: NA | AE12: NA | AF12: NA | AI12: 0 | AJ12: 0 | AK12: 0 | AN12: =HLOOKUP(Input!$B$3,MCA_5!$E$2:$AF$76,11) -> NA
A13: 9a | B13: Cyclodine pesticides: Aldrin, Dieldrin, Endrin and Isodrin | C13: Priority substance | D13: 309-00-2 / 60-57-1 / 72-20-8/465-73-6 | AI13: 0 | AJ13: 0 | AK13: 0
A14: 9b | B14: DDT total | C14: Priority substance | D14: not applicable | AI14: 0 | AJ14: 0 | AK14: 0
A15: 9c | B15: para-para-DDT | C15: Priority substance | D15: 50-29-3 | AI15: 0 | AJ15: 0 | AK15: 0
A16: 10 | B16: 1, 2-Dichloroethane | C16: Priority substance | D16: 107-06-2 | AI16: 0 | AJ16: 0 | AK16: 0
A17: 11 | B17: Dichloromethane | C17: Priority substance | D17: 75-09-2 | AI17: 0 | AJ17: 0 | AK17: 0
A18: 12 | B18: Di(2-ethylhexyl)-phthalate (DEHP) | C18: Priority substance | D18: 117-81-7 | AI18: 0 | AJ18: 0 | AK18: 0
A19: 13 | B19: Diuron | C19: Priority substance | D19: 330-54-1 | E19: DERC | F19: NA | G19: DERC | H19: DERC | I19: NA | J19: NA | K19: NA | L19: NA | M19: NA | N19: DERC | O19: DERC | P19: NA | Q19: DERC | R19: NA | S19: NA | T19: NA | U19: NA | V19: NA | W19: NA | X19: DERC | Y19: NA | Z19: NA | AA19: DERC | AB19: DERC | AC19: NA | AD19: NA | AE19: DERC | AF19: NA | AI19: 10 | AJ19: 0 | AK19: 10 | AN19: =HLOOKUP(Input!$B$3,MCA_5!$E$2:$AF$76,18) -> DERC
A20: 14 | B20: Endosulfan | C20: Priority substance | D20: 115-29-7 | AI20: 0 | AJ20: 0 | AK20: 0
A21: 15 | B21: Fluoranthene | C21: Priority substance | D21: 206-44-0 | AI21: 0 | AJ21: 0 | AK21: 0
A22: 16 | B22: Hexachlorobenzene | C22: Priority substance | D22: 118-74-1 | AI22: 0 | AJ22: 0 | AK22: 0
A23: 17 | B23: Hexachlorobutadiene | C23: Priority substance | D23: 87-68-3 | AI23: 0 | AJ23: 0 | AK23: 0
A24: 18 | B24: Hexachlorocyclohexane (Lindane) | C24: Priority substance | D24: 608-73-1 | AI24: 0 | AJ24: 0 | AK24: 0
A25: 19 | B25: Isoproturon | C25: Priority substance | D25: 34123-59-6 | E25: DERC | F25: NA | G25: DERC | H25: DERC | I25: NA | J25: NA | K25: NA | L25: NA | M25: NA | N25: DERC | O25: DERC | P25: NA | Q25: DERC | R25: NA | S25: NA | T25: NA | U25: NA | V25: NA | W25: NA | X25: DERC | Y25: NA | Z25: NA | AA25: DERC | AB25: DERC | AC25: NA | AD25: NA | AE25: DERC | AF25: NA | AI25: 10 | AJ25: 0 | AK25: 10 | AN25: =HLOOKUP(Input!$B$3,MCA_5!$E$2:$AF$76,24) -> DERC
A26: 20 | B26: Lead and its compounds | C26: Priority substance | D26: 7439-92-1 | AI26: 0 | AJ26: 0 | AK26: 0
A27: 21 | B27: Mercury and its compounds | C27: Priority substance | D27: 7439-97-6 | AI27: 0 | AJ27: 0 | AK27: 0
A28: 22 | B28: Naphthalene | C28: Priority substance | D28: 91-20-3 | AI28: 0 | AJ28: 0 | AK28: 0
A29: 23 | B29: Nickel and its compounds | C29: Priority substance | D29: 7440-02-0 | AI29: 0 | AJ29: 0 | AK29: 0
A30: 24 | B30: Nonylphenols (4-Nonylphenol) | C30: Priority substance | D30: 84852-15-3 | AI30: 0 | AJ30: 0 | AK30: 0
A31: 25 | B31: Octylphenols ((4-(1,1’,3,3’-tetramethylbutyl)-phenol) | C31: Priority substance | D31: 140-66-9 | AI31: 0 | AJ31: 0 | AK31: 0
A32: 26 | B32: Pentachlorobenzene (PeCB) | C32: Priority substance | D32: 608-93-5 | AI32: 0 | AJ32: 0 | AK32: 0
A33: 27 | B33: Pentachlorophenol (PCP) | C33: Priority substance | D33: 87-86-5 | AI33: 0 | AJ33: 0 | AK33: 0
A34: 28 | B34: PAH - Bezo(a)pyrene | C34: Priority substance | D34: 50-32-8 | AI34: 0 | AJ34: 0 | AK34: 0
A35: 28a | B35: PAH - Benzo(b)fluoranthene | C35: Priority substance | D35: 205-99-2 | AI35: 0 | AJ35: 0 | AK35: 0
A36: 28b | B36: PAH - Benzo(k)fluoranthene | C36: Priority substance | D36: 207-08-9 | AI36: 0 | AJ36: 0 | AK36: 0
A37: 28c | B37: PAH - Benzo(g,h,i)-perylene | C37: Priority substance | D37: 191-24-2 | AI37: 0 | AJ37: 0 | AK37: 0
A38: 28d | B38: PAH - Indeno(1,2,3-cd)-pyrene | C38: Priority substance | D38: 193-39-5 | AI38: 0 | AJ38: 0 | AK38: 0
A39: 29 | B39: Simazine | C39: Priority substance | D39: 122-34-9 | AI39: 0 | AJ39: 0 | AK39: 0
A40: 29a | B40: Tetrachloroethylene (PERC) | C40: Priority substance | D40: 127-18-4 | AI40: 0 | AJ40: 0 | AK40: 0
A41: 29b | B41: Trichloroethylene (TCE) | C41: Priority substance | D41: 79-01-6 | AI41: 0 | AJ41: 0 | AK41: 0
A42: 30 | B42: Tributyltin compounds (Tributyltincation) (TBT) | C42: Priority substance | D42: 36643-28-4 | AI42: 0 | AJ42: 0 | AK42: 0
A43: 31 | B43: Trichlorobenzenes | C43: Priority substance | D43: 12002-48-1 | AI43: 0 | AJ43: 0 | AK43: 0
A44: 32 | B44: Trichloromethane (Chloroform) | C44: Priority substance | D44: 67-66-3 | AI44: 0 | AJ44: 0 | AK44: 0
A45: 33 | B45: Trifluralin | C45: Priority substance | D45: 1582-09-8 | AI45: 0 | AJ45: 0 | AK45: 0
A46: 34 | B46: Dicofol | C46: Priority substance | D46: 115-32-2 | E46: NA | F46: NA | G46: NA | H46: NA | I46: NA | J46: NA | K46: NA | L46: NA | M46: NA | N46: DERC | O46: DERC | P46: NA | Q46: NA | R46: NA | S46: NA | T46: NA | U46: NA | V46: NA | W46: NA | X46: DERC | Y46: NA | Z46: ENEC | AA46: NA | AB46: NA | AC46: NA | AD46: NA | AE46: NA | AF46: NA | AI46: 3 | AJ46: 1 | AK46: 4 | AN46: =HLOOKUP(Input!$B$3,MCA_5!$E$2:$AF$76,45) -> NA
A47: 35 | B47: Perfluorooctane sulfonic acid and its derivatives (PFOS) | C47: Priority substance | D47: 1763-23-1 | E47: NA | F47: NA | G47: NA | H47: NA | I47: NA | J47: NA | K47: NA | L47: NA | M47: NA | N47: NA | O47: NA | P47: NA | Q47: NA | R47: NA | S47: NA | T47: NA | U47: NA | V47: NA | W47: NA | X47: NA | Y47: NA | Z47: NA | AA47: NA | AB47: NA | AC47: NA | AD47: NA | AE47: NA | AF47: NA | AI47: 0 | AJ47: 0 | AK47: 0 | AN47: =HLOOKUP(Input!$B$3,MCA_5!$E$2:$AF$76,46) -> NA
A48: 36 | B48: Quinoxyfen | C48: Priority substance | D48: 124495-18-7 | E48: ENEC | F48: NA | G48: ENEC | H48: ENEC | I48: NA | J48: NA | K48: NA | L48: NA | M48: NA | N48: DERC | O48: DERC | P48: NA | Q48: ENEC | R48: NA | S48: NA | T48: NA | U48: NA | V48: NA | W48: NA | X48: DERC | Y48: NA | Z48: ENEC | AA48: ENEC | AB48: ENEC | AC48: NA | AD48: NA | AE48: ENEC | AF48: NA | AI48: 3 | AJ48: 7 | AK48: 10 | AN48: =HLOOKUP(Input!$B$3,MCA_5!$E$2:$AF$76,47) -> ENEC
A49: 37 | B49: Dioxins and dioxin-like compounds | C49: Priority substance | AI49: 0 | AJ49: 0 | AK49: 0
A50: 38 | B50: Aclonifen | C50: Priority substance | D50: 74070-46-5 | E50: ENEC | F50: NA | G50: ENEC | H50: ENEC | I50: NA | J50: NA | K50: NA | L50: NA | M50: NA | N50: DERC | O50: DERC | P50: NA | Q50: ENEC | R50: NA | S50: NA | T50: NA | U50: NA | V50: NA | W50: NA | X50: DERC | Y50: NA | Z50: NA | AA50: ENEC | AB50: ENEC | AC50: NA | AD50: NA | AE50: ENEC | AF50: NA | AI50: 3 | AJ50: 6 | AK50: 9 | AN50: =HLOOKUP(Input!$B$3,MCA_5!$E$2:$AF$76,49) -> ENEC
A51: 39 | B51: Bifenox | C51: Priority substance | D51: 42576-02-3 | E51: ENEC | F51: NA | G51: ENEC | H51: ENEC | I51: NA | J51: NA | K51: NA | L51: NA | M51: NA | N51: DERC | O51: DERC | P51: NA | Q51: ENEC | R51: NA | S51: NA | T51: NA | U51: NA | V51: NA | W51: NA | X51: DERC | Y51: NA | Z51: NA | AA51: ENEC | AB51: ENEC | AC51: NA | AD51: NA | AE51: ENEC | AF51: NA | AI51: 3 | AJ51: 6 | AK51: 9 | AN51: =HLOOKUP(Input!$B$3,MCA_5!$E$2:$AF$76,50) -> ENEC
A52: 40 | B52: Cybutryne | C52: Priority substance | D52: 28159-98-0 | E52: DERC | F52: NA | G52: ENEC | H52: ENEC | I52: NA | J52: NA | K52: NA | L52: NA | M52: NA | N52: ENEC | O52: DERC | P52: NA | Q52: DERC | R52: NA | S52: NA | T52: NA | U52: NA | V52: NA | W52: NA | X52: DERC | Y52: NA | Z52: NA | AA52: ENEC | AB52: DERC | AC52: NA | AD52: NA | AE52: DERC | AF52: NA | AI52: 6 | AJ52: 4 | AK52: 10 | AN52: =HLOOKUP(Input!$B$3,MCA_5!$E$2:$AF$76,51) -> ENEC
A53: 41 | B53: Cypermethrin | C53: Priority substance | D53: 52315-07-8 | E53: ENEC | F53: NA | G53: ENEC | H53: ENEC | I53: NA | J53: NA | K53: NA | L53: NA | M53: ENEC | N53: DERC | O53: DERC | P53: NA | Q53: ENEC | R53: NA | S53: NA | T53: NA | U53: NA | V53: NA | W53: NA | X53: DERC | Y53: NA | Z53: NA | AA53: ENEC | AB53: NA | AC53: NA | AD53: NA | AE53: DERC | AF53: DERC | AI53: 5 | AJ53: 5 | AK53: 10 | AN53: =HLOOKUP(Input!$B$3,MCA_5!$E$2:$AF$76,52) -> ENEC
A54: 42 | B54: Dichlorvos | C54: Priority substance | D54: 62-73-7 | E54: ENEC | F54: DERC | G54: ENEC | H54: ENEC | I54: NA | J54: NA | K54: ENEC | L54: NA | M54: ENEC | N54: DERC | O54: DERC | P54: NA | Q54: ENEC | R54: NA | S54: NA | T54: NA | U54: NA | V54: NA | W54: NA | X54: DERC | Y54: NA | Z54: NA | AA54: ENEC | AB54: ENEC | AC54: NA | AD54: NA | AE54: DERC | AF54: NA | AI54: 5 | AJ54: 7 | AK54: 12 | AN54: =HLOOKUP(Input!$B$3,MCA_5!$E$2:$AF$76,53) -> ENEC
A55: 43 | B55: Hexabromocyclododecane (HBCDD) | C55: Priority substance | D55: 3194-55-6 | E55: NA | F55: NA | G55: NA | H55: NA | I55: NA | J55: NA | K55: NA | L55: NA | M55: NA | N55: NA | O55: NA | P55: NA | Q55: NA | R55: NA | S55: NA | T55: NA | U55: NA | V55: NA | W55: NA | X55: NA | Y55: NA | Z55: NA | AA55: NA | AB55: NA | AC55: NA | AD55: NA | AE55: DERC | AF55: NA | AI55: 1 | AJ55: 0 | AK55: 1 | AN55: =HLOOKUP(Input!$B$3,MCA_5!$E$2:$AF$76,54) -> NA
A56: 44 | B56: Heptachlor and heptachlor epoxide | C56: Priority substance | D56: 76-44-8 / 1024-57-3 | E56: NA | F56: DERC | G56: NA | H56: NA | I56: DERC | J56: NA | K56: NA | L56: NA | M56: NA | N56: DERC | O56: DERC | P56: NA | Q56: NA | R56: NA | S56: NA | T56: NA | U56: NA | V56: NA | W56: NA | X56: DERC | Y56: NA | Z56: ENEC | AA56: NA | AB56: DERC | AC56: NA | AD56: NA | AE56: NA | AF56: NA | AI56: 6 | AJ56: 1 | AK56: 7 | AN56: =HLOOKUP(Input!$B$3,MCA_5!$E$2:$AF$76,55) -> NA
A57: 45 | B57: Terbutryn | C57: Priority substance | D57: 886-50-0 | E57: DERC | F57: DERC | G57: DERC | H57: DERC | I57: NA | J57: NA | K57: NA | L57: NA | M57: DERC | N57: DERC | O57: DERC | P57: NA | Q57: DERC | R57: NA | S57: NA | T57: NA | U57: NA | V57: NA | W57: NA | X57: DERC | Y57: NA | Z57: NA | AA57: DERC | AB57: DERC | AC57: NA | AD57: DERC | AE57: DERC | AF57: NA | AH57: 5 | AI57: 13 | AJ57: 0 | AK57: 13 | AN57: =HLOOKUP(Input!$B$3,MCA_5!$E$2:$AF$76,56) -> DERC
A58: 46 | B58: 17-alpha-ethinylestradiol (EE2) | C58: First watch list | D58: 57-63-6 | E58: NA | F58: ENEC | G58: NA | H58: NA | I58: NA | J58: NA | K58: NA | L58: NA | M58: NA | N58: ENEC | O58: DERC | P58: NA | Q58: NA | R58: NA | S58: ENEC | T58: NA | U58: NA | V58: NA | W58: NA | X58: DERC | Y58: NA | Z58: NA | AA58: NA | AB58: NA | AC58: ENEC | AD58: NA | AE58: DERC | AF58: ENEC | AI58: 3 | AJ58: 5 | AK58: 8 | AN58: =HLOOKUP(Input!$B$3,MCA_5!$E$2:$AF$76,57) -> NA
A59: 47 | B59: 17-beta-estradiol (E2) | C59: First watch list | D59: 50-28-2 | E59: DERC | F59: NA | G59: ENEC | H59: ENEC | I59: NA | J59: NA | K59: NA | L59: NA | M59: NA | N59: DERC | O59: DERC | P59: NA | Q59: ENEC | R59: NA | S59: NA | T59: NA | U59: NA | V59: NA | W59: NA | X59: ENEC | Y59: NA | Z59: NA | AA59: ENEC | AB59: ENEC | AC59: DERC | AD59: NA | AE59: DERC | AF59: NA | AI59: 5 | AJ59: 6 | AK59: 11 | AN59: =HLOOKUP(Input!$B$3,MCA_5!$E$2:$AF$76,58) -> ENEC
A60: 48 | B60: Diclofenac | C60: First watch list | D60: 15307-86-5 | E60: DERC | F60: DERC | G60: DERC | H60: DERC | I60: NA | J60: DERC | K60: NA | L60: NA | M60: NA | N60: DERC | O60: DERC | P60: DERC | Q60: DERC | R60: NA | S60: DERC | T60: NA | U60: NA | V60: NA | W60: NA | X60: DERC | Y60: NA | Z60: DERC | AA60: DERC | AB60: DERC | AC60: DERC | AD60: DERC | AE60: DERC | AF60: NA | AH60: 1 | AI60: 17 | AJ60: 0 | AK60: 17 | AN60: =HLOOKUP(Input!$B$3,MCA_5!$E$2:$AF$76,59) -> DERC
A61: 49 | B61: Estrone (E1) | C61: Second watch list | D61: 53-16-7 | E61: ENEC | F61: DERC | G61: DERC | H61: ENEC | I61: NA | J61: ENEC | K61: NA | L61: NA | M61: NA | N61: DERC | O61: ENEC | P61: NA | Q61: DERC | R61: NA | S61: DERC | T61: NA | U61: NA | V61: NA | W61: NA | X61: DERC | Y61: NA | Z61: NA | AA61: DERC | AB61: DERC | AC61: DERC | AD61: NA | AE61: NA | AF61: DERC | AI61: 10 | AJ61: 3 | AK61: 13 | AN61: =HLOOKUP(Input!$B$3,MCA_5!$E$2:$AF$76,60) -> ENEC
A62: 50 | B62: Macrolide antibiotics (erythromycin, clarithromycin, azithromycin) | C62: Second watch list | D62: 114-07-8 / 81103-11-9 / 83905-01-5 | E62: DERC | F62: NA | G62: DERC | H62: DERC | I62: NA | J62: NA | K62: NA | L62: NA | M62: NA | N62: DERC | O62: DERC | P62: NA | Q62: DERC | R62: NA | S62: NA | T62: NA | U62: NA | V62: NA | W62: NA | X62: DERC | Y62: NA | Z62: NA | AA62: DERC | AB62: ENEC | AC62: NA | AD62: DERC | AE62: DERC | AF62: NA | AI62: 10 | AJ62: 1 | AK62: 11 | AN62: =HLOOKUP(Input!$B$3,MCA_5!$E$2:$AF$76,61) -> DERC
A63: 51 | B63: Methiocarb | C63: Second watch list | D63: 2032-65-7 | E63: ENEC | F63: NA | G63: NA | H63: NA | I63: NA | J63: NA | K63: NA | L63: NA | M63: NA | N63: DERC | O63: NA | P63: NA | Q63: ENEC | R63: NA | S63: NA | T63: NA | U63: NA | V63: NA | W63: NA | X63: DERC | Y63: NA | Z63: NA | AA63: ENEC | AB63: NA | AC63: NA | AD63: NA | AE63: ENEC | AF63: NA | AI63: 2 | AJ63: 3 | AK63: 5 | AN63: =HLOOKUP(Input!$B$3,MCA_5!$E$2:$AF$76,62) -> NA
A64: 52 | B64: Neonicotinoids (imidacloprid, thiacloprid, thiamethoxam, clothianidin, acetamiprid) | C64: Second watch list | D64: 138261-41-3 / 111988-49-9 / 153719-23-4 / 210880-92-5 / 135410-20-7 | E64: ENEC | F64: NA | G64: ENEC | H64: ENEC | I64: NA | J64: NA | K64: NA | L64: NA | M64: NA | N64: DERC | O64: DERC | P64: NA | Q64: ENEC | R64: NA | S64: NA | T64: NA | U64: NA | V64: NA | W64: NA | X64: DERC | Y64: NA | Z64: ENEC | AA64: ENEC | AB64: NA | AC64: NA | AD64: NA | AE64: DERC | AF64: NA | AI64: 4 | AJ64: 5 | AK64: 9 | AN64: =HLOOKUP(Input!$B$3,MCA_5!$E$2:$AF$76,63) -> ENEC
A65: 53 | B65: Metaflumizone | C65: Second watch list | D65: 139968-49-3 | AI65: 0 | AJ65: 0 | AK65: 0
A66: 54 | B66: Amoxicillin | C66: Second watch list | D66: 26787-78-0 | E66: DERC | F66: NA | G66: ENEC | H66: DERC | I66: NA | J66: NA | K66: NA | L66: NA | M66: NA | N66: ENEC | O66: DERC | P66: NA | Q66: DERC | R66: NA | S66: NA | T66: NA | U66: NA | V66: NA | W66: NA | X66: ENEC | Y66: NA | Z66: NA | AA66: ENEC | AB66: DERC | AC66: NA | AD66: NA | AE66: NA | AF66: NA | AI66: 5 | AJ66: 4 | AK66: 9 | AN66: =HLOOKUP(Input!$B$3,MCA_5!$E$2:$AF$76,65) -> DERC
A67: 55 | B67: Ciprofloxacin | C67: Second watch list | D67: 85721-33-1 | E67: NA | F67: NA | G67: NA | H67: NA | I67: NA | J67: NA | K67: NA | L67: NA | M67: NA | N67: DERC | O67: DERC | P67: NA | Q67: NA | R67: NA | S67: NA | T67: NA | U67: NA | V67: NA | W67: NA | X67: DERC | Y67: NA | Z67: DERC | AA67: NA | AB67: NA | AC67: NA | AD67: DERC | AE67: DERC | AF67: NA | AI67: 6 | AJ67: 0 | AK67: 6 | AN67: =HLOOKUP(Input!$B$3,MCA_5!$E$2:$AF$76,66) -> NA
A68: 56 | B68: Carbamazepine | C68: Not included in the other categories | D68: 298-46-4 | E68: DERC | F68: DERC | G68: DERC | H68: DERC | I68: NA | J68: DERC | K68: NA | L68: NA | M68: NA | N68: DERC | O68: DERC | P68: NA | Q68: DERC | R68: NA | S68: DERC | T68: NA | U68: NA | V68: NA | W68: NA | X68: DERC | Y68: NA | Z68: DERC | AA68: DERC | AB68: DERC | AC68: DERC | AD68: DERC | AE68: DERC | AF68: NA | AH68: 2 | AI68: =COUNTIF(E68:AF68,$AI$2) -> 16 | AJ68: =COUNTIF(F68:AH68,$AJ$2) -> 0 | AK68: =+AI68+AJ68 -> 16 | AN68: =HLOOKUP(Input!$B$3,MCA_5!$E$2:$AF$76,67) -> DERC
A69: 57 | B69: Ibuprofen | C69: Not included in the other categories | D69: 15687-27-1 | E69: DERC | F69: DERC | G69: DERC | H69: DERC | I69: NA | J69: DERC | K69: NA | L69: NA | M69: NA | N69: DERC | O69: DERC | P69: ENEC | Q69: DERC | R69: NA | S69: DERC | T69: NA | U69: NA | V69: NA | W69: NA | X69: DERC | Y69: NA | Z69: DERC | AA69: DERC | AB69: DERC | AC69: DERC | AD69: DERC | AE69: DERC | AF69: NA | AH69: 3 | AI69: 16 | AJ69: 1 | AK69: 17 | AN69: =HLOOKUP(Input!$B$3,MCA_5!$E$2:$AF$76,68) -> DERC
A70: 58 | B70: Fluoxetine (Prozac) | C70: Not included in the other categories | D70: 54910-89-3 | E70: NA | F70: NA | G70: NA | H70: NA | I70: NA | J70: NA | K70: NA | L70: NA | M70: NA | N70: DERC | O70: DERC | P70: NA | Q70: NA | R70: NA | S70: NA | T70: NA | U70: NA | V70: NA | W70: NA | X70: DERC | Y70: NA | Z70: ENEC | AA70: NA | AB70: NA | AC70: NA | AD70: DERC | AE70: DERC | AF70: NA | AI70: 5 | AJ70: 1 | AK70: 6 | AN70: =HLOOKUP(Input!$B$3,MCA_5!$E$2:$AF$76,69) -> NA
A71: 59 | B71: Chloramphenicol | C71: Not included in the other categories | D71: 56-75-7 | E71: ENEC | F71: NA | G71: ENEC | H71: ENEC | I71: NA | J71: NA | K71: NA | L71: NA | M71: NA | N71: NA | O71: ENEC | P71: NA | Q71: ENEC | R71: NA | S71: NA | T71: NA | U71: NA | V71: NA | W71: NA | X71: DERC | Y71: NA | Z71: NA | AA71: ENEC | AB71: NA | AC71: NA | AD71: DERC | AE71: ENEC | AF71: NA | AI71: 2 | AJ71: 6 | AK71: 8 | AN71: =HLOOKUP(Input!$B$3,MCA_5!$E$2:$AF$76,70) -> ENEC
A72: 60 | B72: Sulfamethoxazole | C72: Not included in the other categories | D72: 723-46-6 | E72: DERC | F72: DERC | G72: DERC | H72: DERC | I72: NA | J72: DERC | K72: NA | L72: NA | M72: NA | N72: DERC | O72: DERC | P72: NA | Q72: DERC | R72: NA | S72: DERC | T72: NA | U72: NA | V72: NA | W72: NA | X72: DERC | Y72: NA | Z72: NA | AA72: DERC | AB72: DERC | AC72: NA | AD72: DERC | AE72: DERC | AF72: NA | AH72: 4 | AI72: 14 | AJ72: 0 | AK72: 14 | AN72: =HLOOKUP(Input!$B$3,MCA_5!$E$2:$AF$76,71) -> DERC
A73: 61 | B73: Ketoprofen | C73: Not included in the other categories | D73: 22071-15-4 | E73: ENEC | F73: NA | G73: ENEC | H73: ENEC | I73: NA | J73: ENEC | K73: NA | L73: NA | M73: NA | N73: DERC | O73: ENEC | P73: DERC | Q73: ENEC | R73: NA | S73: DERC | T73: NA | U73: NA | V73: NA | W73: NA | X73: DERC | Y73: NA | Z73: DERC | AA73: DERC | AB73: ENEC | AC73: DERC | AD73: DERC | AE73: DERC | AF73: NA | AI73: 9 | AJ73: 6 | AK73: 15 | AN73: =HLOOKUP(Input!$B$3,MCA_5!$E$2:$AF$76,72) -> ENEC
A74: 62 | B74: Glyphosate | C74: Not included in the other categories | D74: 1071-83-6 | E74: DERC | F74: DERC | G74: DERC | H74: ENEC | I74: NA | J74: NA | K74: DERC | L74: NA | M74: NA | N74: DERC | O74: DERC | P74: NA | Q74: ENEC | R74: NA | S74: NA | T74: NA | U74: NA | V74: NA | W74: NA | X74: DERC | Y74: NA | Z74: NA | AA74: ENEC | AB74: DERC | AC74: NA | AD74: NA | AE74: DERC | AF74: NA | AI74: 9 | AJ74: 3 | AK74: 12 | AN74: =HLOOKUP(Input!$B$3,MCA_5!$E$2:$AF$76,73) -> ENEC
A75: 63 | B75: AMPA | C75: Not included in the other categories | D75: 1066-51-9 | E75: DERC | F75: DERC | G75: DERC | H75: DERC | I75: NA | J75: NA | K75: NA | L75: NA | M75: NA | N75: DERC | O75: DERC | P75: NA | Q75: DERC | R75: NA | S75: NA | T75: NA | U75: NA | V75: NA | W75: NA | X75: DERC | Y75: NA | Z75: NA | AA75: DERC | AB75: DERC | AC75: NA | AD75: NA | AE75: DERC | AF75: NA | AI75: 11 | AJ75: 0 | AK75: 11 | AN75: =HLOOKUP(Input!$B$3,MCA_5!$E$2:$AF$76,74) -> DERC
A76: 64 | B76: Estriol (E3) | C76: Not included in the other categories | D76: 50-27-1 | E76: NA | F76: ENEC | G76: NA | H76: NA | I76: NA | J76: NA | K76: NA | L76: NA | M76: NA | N76: ENEC | O76: ENEC | P76: NA | Q76: NA | R76: NA | S76: NA | T76: NA | U76: NA | V76: NA | W76: NA | X76: ENEC | Y76: NA | Z76: NA | AA76: NA | AB76: ENEC | AC76: DERC | AD76: NA | AE76: NA | AF76: ENEC | AI76: 1 | AJ76: 6 | AK76: 7 | AN76: =HLOOKUP(Input!$B$3,MCA_5!$E$2:$AF$76,75) -> NA
C78: Weight | D78: Result
C79: 1 | D79: DERC | E79: =COUNTIF(E3:E76,$D$79) -> 13 | F79: =COUNTIF(F3:F76,$D$79) -> 11 | G79: 11 | H79: 10 | I79: 1 | J79: 4 | K79: 1 | L79: 0 | M79: 1 | N79: 25 | O79: 25 | P79: 2 | Q79: 12 | R79: 0 | S79: 6 | T79: 0 | U79: 0 | V79: 0 | W79: 0 | X79: 27 | Y79: 0 | Z79: 5 | AA79: 11 | AB79: 14 | AC79: 7 | AD79: 10 | AE79: 20 | AF79: 2
C80: 0 | D80: ENEC | E80: =COUNTIF(E3:E76,$D$80) -> 11 | F80: =COUNTIF(F3:F76,$D$80) -> 2 | G80: 12 | H80: 13 | I80: 1 | J80: 3 | K80: 1 | L80: 0 | M80: 2 | N80: 4 | O80: 4 | P80: 1 | Q80: 12 | R80: 0 | S80: 1 | T80: 0 | U80: 0 | V80: 0 | W80: 0 | X80: 3 | Y80: 0 | Z80: 5 | AA80: 13 | AB80: 8 | AC80: 1 | AD80: 0 | AE80: 5 | AF80: 2
C81: 0.75 | D81: NA | E81: =COUNTIF(E3:E76,$D$81) -> 9 | F81: =COUNTIF(F3:F76,$D$81) -> 20 | G81: 10 | H81: 10 | I81: 31 | J81: 26 | K81: 31 | L81: 33 | M81: 30 | N81: 4 | O81: 4 | P81: 30 | Q81: 9 | R81: 33 | S81: 26 | T81: 33 | U81: 33 | V81: 33 | W81: 33 | X81: 3 | Y81: 33 | Z81: 23 | AA81: 9 | AB81: 11 | AC81: 25 | AD81: 23 | AE81: 8 | AF81: 29
E82: =SUM(E79:E81) -> 33 | F82: =SUM(F79:F81) -> 33 | G82: =SUM(G79:G81) -> 33 | H82: 33 | I82: 33 | J82: 33 | K82: 33 | L82: 33 | M82: 33 | N82: 33 | O82: 33 | P82: 33 | Q82: 33 | R82: 33 | S82: 33 | T82: 33 | U82: 33 | V82: 33 | W82: 33 | X82: 33 | Y82: 33 | Z82: 33 | AA82: 33 | AB82: 33 | AC82: 33 | AD82: 33 | AE82: 33 | AF82: 33
C83: Min | D83: Max
C84: =MIN(E84:AF84) -> 17.5 | D84: =MAX(E84:AF84) -> 29.25 | E84: =+E79*$C$79+E80*$C$80+E81*$C$81 -> 19.75 | F84: 26 | G84: 18.5 | H84: 17.5 | I84: 24.25 | J84: 23.5 | K84: 24.25 | L84: 24.75 | M84: 23.5 | N84: 28 | O84: 28 | P84: 24.5 | Q84: 18.75 | R84: 24.75 | S84: 25.5 | T84: 24.75 | U84: 24.75 | V84: 24.75 | W84: 24.75 | X84: 29.25 | Y84: 24.75 | Z84: 22.25 | AA84: 17.75 | AB84: 22.25 | AC84: 25.75 | AD84: 27.25 | AE84: 26 | AF84: 23.75

Sheet Sum report
A1: Name | B1: Koprivnica
A2: Country | B2: Croatia
A3: Screening | B3: satisfied
A4: Total score | B4: 58
A5: CAPEX (million €) | B5: 9115909.952
A6: OPEX (thousands €/year) | B6: 1014586.493
A7: UWPC (€/m3) | B7: 1.166092774
A8: Energy consumption (kWh) | B8: 246.1375
A9: Energy price (€/kWh) | B9: 0.0848
A10: Energy OPEX (thousands €/year) | B10: 182842.7496
A11: Water exploitation index (%) | B11: 0.6
A12: Water pollution as the main environmental issue (%) | B12: 48
A13: Environmental impact of the discharge | B13: 1619.758621
